bitfinex/quotes_BTCUSD_20241205
["timestamp","ask_amount","ask_price","bid_price","bid_amount"]
[1733429840202,0.2,98162.0,98161.0,0.162996]
[1733429840431,0.1,98162.0,98161.0,0.162996]
[1733429840684,0.02020893,98177.0,98143.0,0.163027]
[1733429840685,0.1,98170.0,98143.0,0.163027]
[1733429840906,0.1,98170.0,98169.0,0.152797]
[1733429841359,0.1,98160.0,98159.0,0.152812]
[1733429841613,0.2,98163.0,98162.0,0.152808]
[1733429842049,0.2,98160.0,98159.0,0.152812]
[1733429842275,0.1,98181.0,98177.0,0.152783]
[1733429842751,0.0459,98191.0,98185.0,0.152772]
[1733429842959,0.0751,98208.0,98157.0,0.152816]
[1733429842960,0.1,98199.0,98186.0,0.152771]
[1733429843179,0.1,98199.0,98157.0,0.01697826]
[1733429843180,0.048,98214.0,98187.0,0.09967605]
[1733429843398,0.048,98214.0,98210.0,0.152732]
[1733429843399,0.1,98211.0,98210.0,0.152732]
[1733429843874,0.2,98222.0,98219.0,0.152719]
[1733429844102,0.1,98220.0,98219.0,0.152719]
[1733429844331,0.0808,98241.0,98219.0,0.152719]
[1733429844332,0.02044319,98247.0,98219.0,0.40511405]
[1733429844561,0.1,98251.0,98219.0,0.40511405]
[1733429844562,0.1489,98252.0,98221.0,0.152716]
[1733429844785,0.1,98237.0,98221.0,0.152716]
[1733429845473,0.1,98237.0,98219.0,0.152779]
[1733429845474,0.1,98246.0,98245.0,0.152678]
[1733429845712,0.1,98236.0,98219.0,6e-05]
[1733429845943,0.1,98231.0,98219.0,6e-05]
[1733429846162,0.2,98220.0,98219.0,6e-05]
[1733429846402,0.29967605,98220.0,98219.0,6e-05]
[1733429847063,0.2,98220.0,98219.0,6e-05]
[1733429847280,0.1,98212.0,98204.0,0.152741]
[1733429847505,0.1,98224.0,98168.0,0.01729616]
[1733429847772,0.1,98214.0,98205.0,0.152741]
[1733429848005,0.1,98214.0,98095.0,0.05085339]
[1733429848006,0.1,98175.0,98143.0,0.0786]
[1733429848231,0.1,98170.0,98155.0,0.152818]
[1733429848478,0.1,98174.0,98127.0,0.152862]
[1733429848479,0.1,98174.0,98169.0,0.152797]
[1733429848941,0.1,98176.0,98174.0,0.152789]
[1733429849188,0.1,98180.0,98174.0,0.152789]
[1733429849411,0.1,98182.0,98156.0,0.25249205]
[1733429849659,0.1,98182.0,98166.0,0.152801]
[1733429849888,0.1,98178.0,98166.0,0.152801]
[1733429850122,0.1,98178.0,98172.0,0.152792]
[1733429850401,0.10017641,98185.0,98156.0,0.09967605]
[1733429850402,0.1,98182.0,98156.0,0.09967605]
[1733429850634,0.001,98170.0,98156.0,0.09967605]
[1733429850871,0.001,98170.0,98166.0,0.152801]
[1733429851111,0.1,98174.0,98166.0,0.152801]
[1733429851328,0.1,98174.0,98171.0,0.152793]
[1733429851565,0.1,98174.0,98173.0,0.152791]
[1733429851800,0.00017641,98185.0,98173.0,0.152791]
[1733429851801,0.001,98182.0,98180.0,0.15278]
[1733429852028,0.00017641,98185.0,98180.0,0.15278]
[1733429852255,0.00017641,98185.0,98181.0,0.152777]
[1733429852727,0.00017641,98185.0,98183.0,0.152775]
[1733429852976,0.00017641,98185.0,98184.0,0.09967605]
[1733429853189,0.00017641,98185.0,98184.0,0.24967605]
[1733429853619,0.1,98183.0,98182.0,0.1]
[1733429853835,0.00017641,98185.0,98182.0,0.19967605]
[1733429854065,0.00017641,98185.0,98183.0,0.09967605]
[1733429854338,0.00017641,98185.0,98183.0,0.25245105]
[1733429855519,0.00117641,98185.0,98183.0,0.25845105]
[1733429855762,0.00217641,98185.0,98183.0,0.25845105]
[1733429856441,0.1,98184.0,98183.0,0.006]
[1733429857197,0.1,98184.0,98143.0,0.01707855]
[1733429857198,0.1,98176.0,98171.0,0.152794]
[1733429857679,0.1,98176.0,98171.0,0.305588]
[1733429857911,0.1,98176.0,98172.0,0.305586]
[1733429858147,0.00017641,98185.0,98183.0,0.152775]
[1733429858367,0.006,98184.0,98183.0,0.153775]
[1733429858591,0.10017641,98185.0,98183.0,0.152775]
[1733429858834,0.00017641,98185.0,98184.0,0.09967605]
[1733429859058,0.00017641,98185.0,98174.0,0.152789]
[1733429859059,0.005,98176.0,98174.0,0.152789]
[1733429859311,0.006,98176.0,98175.0,0.09967605]
[1733429859774,0.00017641,98185.0,98184.0,0.152774]
[1733429860012,0.00017641,98185.0,98184.0,0.25245005]
[1733429860233,4.1e-07,98185.0,98184.0,0.42545005]
[1733429860489,4.1e-07,98185.0,98184.0,0.3754574]
[1733429860724,1e-08,98190.0,98184.0,0.27267605]
[1733429860969,0.1,98252.0,98242.0,0.142504]
[1733429861185,0.1,98254.0,98209.0,0.2297]
[1733429861408,0.101737,98260.0,98259.0,0.14248]
[1733429861409,0.001737,98260.0,98259.0,0.14248]
[1733429862395,0.00232671,98260.0,98259.0,0.14248]
[1733429862615,0.00232671,98260.0,98259.0,0.24215605]
[1733429863102,0.00232671,98260.0,98259.0,0.14248]
[1733429863345,0.00232671,98260.0,98259.0,0.24215605]
[1733429864035,0.00532671,98260.0,98259.0,0.24215605]
[1733429864255,0.00232671,98260.0,98259.0,0.14248]
[1733429864476,0.00632671,98260.0,98259.0,0.14248]
[1733429864755,0.00632671,98260.0,98259.0,0.24215605]
[1733429864966,0.00232671,98260.0,98259.0,0.24215605]
[1733429865186,0.00232671,98260.0,98259.0,0.24415605]
[1733429865838,0.00232671,98260.0,98259.0,0.24515605]
[1733429866568,0.00232671,98260.0,98259.0,0.24315605]
[1733429866569,7.1e-07,98260.0,98259.0,0.24315605]
[1733429866785,7.1e-07,98260.0,98259.0,0.24515605]
[1733429867013,7.1e-07,98260.0,98251.0,0.142492]
[1733429867014,0.10000071,98260.0,98251.0,0.142491]
[1733429867250,0.10000071,98260.0,98188.0,0.264795]
[1733429867251,0.1,98238.0,98191.0,0.142579]
[1733429867462,0.1,98238.0,98190.0,0.0752]
[1733429867463,0.1,98238.0,98235.0,0.142515]
[1733429867713,0.1,98222.0,98213.0,0.142546]
[1733429867934,0.1,98211.0,98197.0,0.14257]
[1733429868185,0.1,98211.0,98168.0,0.0752]
[1733429868186,0.1,98206.0,98171.0,0.142608]
[1733429868410,0.1,98206.0,98205.0,0.142558]
[1733429868893,0.0458,98217.0,98210.0,0.142551]
[1733429868894,0.1,98211.0,98210.0,0.142551]
[1733429869357,0.0756,98215.0,98205.0,0.143147]
[1733429869358,0.1,98206.0,98205.0,0.000589]
[1733429869585,0.1,98210.0,98205.0,0.000589]
[1733429869836,0.1756,98215.0,98205.0,0.000589]
[1733429869837,0.1,98206.0,98205.0,0.000589]
[1733429870075,0.1,98214.0,98213.0,0.142547]
[1733429870302,0.1,98213.0,98212.0,0.142548]
[1733429870524,0.0756,98232.0,98205.0,0.000589]
[1733429870525,0.1,98219.0,98205.0,0.000589]
[1733429870746,0.1,98213.0,98205.0,0.000589]
[1733429870970,0.1,98208.0,98205.0,0.000589]
[1733429871196,0.101,98206.0,98205.0,0.000589]
[1733429871451,0.1,98206.0,98205.0,0.000589]
[1733429871673,0.1,98206.0,98178.0,0.142598]
[1733429871674,0.1,98201.0,98155.0,0.02135305]
[1733429871890,4.999411,98205.0,98199.0,0.142567]
[1733429872113,0.1,98201.0,98199.0,0.142567]
[1733429872372,0.1,98201.0,98200.0,0.142566]
[1733429872566,4.999411,98205.0,98194.0,0.142574]
[1733429872567,0.1,98195.0,98194.0,0.142574]
[1733429873014,0.1,98195.0,98188.0,0.142582]
[1733429873015,0.1,98191.0,98188.0,0.142582]
[1733429873235,0.1,98191.0,98179.0,0.142595]
[1733429873454,0.1,98186.0,98183.0,0.142589]
[1733429873709,0.1,98186.0,98183.0,0.285179]
[1733429874586,0.2,98179.0,98178.0,0.00017641]
[1733429874823,0.29967605,98179.0,98178.0,0.00017641]
[1733429875100,0.1,98162.0,98159.0,0.142624]
[1733429875553,0.27875279,98179.0,98150.0,0.1435059]
[1733429875554,0.1,98158.0,98150.0,0.1435059]
[1733429875796,0.1,98158.0,98155.0,0.142631]
[1733429876026,0.1,98158.0,98150.0,0.1435059]
[1733429876027,0.2,98175.0,98156.0,0.14263]
[1733429876254,0.07907674,98179.0,98150.0,0.1435059]
[1733429876255,0.1,98176.0,98157.0,0.09967605]
[1733429876478,0.1,98166.0,98165.0,0.142617]
[1733429876721,0.1,98176.0,98175.0,0.142602]
[1733429876951,0.1,98176.0,98157.0,0.09967605]
[1733429877175,0.1,98158.0,98150.0,0.0008689]
[1733429877394,0.17974919,98175.0,98150.0,0.0008689]
[1733429877395,0.1,98154.0,98150.0,0.0008689]
[1733429877629,0.1,98151.0,98150.0,0.0008689]
[1733429878810,0.29967605,98151.0,98150.0,0.0028689]
[1733429879532,0.2,98151.0,98150.0,0.0028689]
[1733429879757,0.2,98151.0,98150.0,0.0038689]
[1733429880004,0.2,98151.0,98150.0,0.0028689]
[1733429880256,0.108,98151.0,98150.0,0.0008689]
[1733429880537,0.01,98151.0,98150.0,0.1435069]
[1733429880766,0.01,98151.0,98150.0,0.09967605]
[1733429881002,0.1,98146.0,98140.0,0.0008684]
[1733429881233,0.1,98142.0,98141.0,0.142651]
[1733429882406,0.10017661,98142.0,98141.0,0.142651]
[1733429883148,0.00017661,98142.0,98141.0,0.24232705]
[1733429883412,0.00017661,98142.0,98141.0,0.39232705]
[1733429883648,6.1e-07,98142.0,98141.0,0.39232705]
[1733429883870,0.1,98199.0,98195.0,0.142573]
[1733429884118,0.1,98197.0,98195.0,0.142573]
[1733429884370,0.1,98181.0,98164.0,0.09967605]
[1733429884593,0.1,98180.0,98170.0,0.142609]
[1733429884815,0.1,98173.0,98149.0,0.14264]
[1733429885061,0.1,98173.0,98167.0,0.142613]
[1733429885296,0.1,98165.0,98141.0,0.007]
[1733429885560,0.1,98159.0,98148.0,0.142641]
[1733429885785,0.1,98153.0,98143.0,0.142648]
[1733429886011,0.0791,98167.0,98141.0,0.007]
[1733429886012,0.1,98147.0,98141.0,0.007]
[1733429886259,0.1,98147.0,98142.0,0.14265]
[1733429886985,0.1,98147.0,98144.0,0.142647]
[1733429887452,0.1,98151.0,98144.0,0.24232305]
[1733429887687,0.06,98171.0,98145.0,0.09967605]
[1733429887986,0.06,98173.0,98165.0,0.142616]
[1733429888211,0.06,98173.0,98169.0,0.14261]
[1733429888446,0.06,98189.0,98186.0,0.142586]
[1733429888708,0.06,98190.0,98186.0,0.285172]
[1733429888964,0.06,98190.0,98186.0,0.142586]
[1733429889243,0.0479,98193.0,98186.0,0.142586]
[1733429889463,0.06,98189.0,98186.0,0.142586]
[1733429889714,0.06,98189.0,98151.0,0.15]
[1733429889715,0.00017687,98193.0,98188.0,0.142583]
[1733429889967,0.00017687,98193.0,98190.0,0.28516]
[1733429890230,0.00017687,98193.0,98192.0,0.292577]
[1733429890519,0.06,98180.0,98172.0,0.142606]
[1733429890750,0.06,98158.0,98151.0,0.142636]
[1733429890956,0.04807687,98193.0,98120.0,0.0814]
[1733429890957,0.06,98169.0,98147.0,0.142643]
[1733429891188,0.06,98179.0,98151.0,0.09967605]
[1733429891413,0.16,98188.0,98176.0,0.142601]
[1733429891624,0.0599,98180.0,98153.0,0.142634]
[1733429891863,0.001,98193.0,98190.0,0.13708]
[1733429892102,0.001,98193.0,98192.0,0.142577]
[1733429892543,0.00117687,98193.0,98192.0,0.142577]
[1733429893234,0.00017687,98193.0,98192.0,0.24225305]
[1733429893675,0.00017687,98193.0,98192.0,0.24425305]
[1733429894111,0.00017687,98193.0,98192.0,0.24525305]
[1733429894326,0.00017687,98193.0,98192.0,0.24225305]
[1733429894824,0.00017687,98193.0,98192.0,0.24325305]
[1733429895045,0.0599,98157.0,98107.0,0.0401]
[1733429895272,0.1599,98171.0,98151.0,0.09967605]
[1733429895497,0.0599,98170.0,98152.0,0.142635]
[1733429895714,5.059311,98205.0,98169.0,0.09967605]
[1733429895928,5.059311,98205.0,98202.0,0.142563]
[1733429895929,4.999411,98205.0,98202.0,0.142563]
[1733429896154,4.999311,98205.0,98199.0,0.142566]
[1733429896373,4.999311,98205.0,98199.0,0.24224305]
[1733429896596,4.99948791,98205.0,98199.0,0.24224305]
[1733429896813,4.99948791,98205.0,98199.0,0.38481005]
[1733429897037,4.99948791,98205.0,98199.0,0.09967605]
[1733429897481,4.99948791,98205.0,98202.0,0.142563]
[1733429897693,4.99948791,98205.0,98199.0,0.09967605]
[1733429897917,4.99948791,98205.0,98178.0,0.142597]
[1733429898140,0.1,98204.0,98196.0,0.142571]
[1733429898371,0.1,98204.0,98190.0,0.14258]
[1733429898838,0.0599,98182.0,98158.0,0.142625]
[1733429899063,0.0599,98162.0,98151.0,0.24231205]
[1733429899288,0.0599,98162.0,98140.0,0.0008684]
[1733429899289,0.0599,98157.0,98146.0,0.142643]
[1733429899951,0.0599,98157.0,98150.0,0.1435054]
[1733429900172,0.0599,98157.0,98150.0,0.0008684]
[1733429900390,0.0599,98157.0,98150.0,0.1435064]
[1733429900608,0.0599,98157.0,98150.0,0.0008684]
[1733429900839,0.2092,98151.0,98150.0,0.0008684]
[1733429901108,0.1,98129.0,98121.0,0.0094684]
[1733429901329,0.1,98124.0,98121.0,0.0094684]
[1733429901543,0.00127381,98150.0,98121.0,0.0094684]
[1733429901544,0.0599,98122.0,98121.0,0.01005636]
[1733429901777,0.05390099,98122.0,98121.0,0.01005636]
[1733429902229,0.15390099,98122.0,98121.0,0.01005636]
[1733429903395,0.1754,98120.0,98119.0,0.1219]
[1733429903618,0.32897704,98120.0,98119.0,0.1219]
[1733429904287,0.32897704,98120.0,98119.0,0.0719]
[1733429904507,0.32897704,98120.0,98100.0,0.023]
[1733429904508,0.1,98111.0,98100.0,0.023]
[1733429904755,0.19967605,98111.0,98100.0,0.023]
[1733429904975,0.25357704,98111.0,98100.0,0.023]
[1733429905622,0.31970374,98111.0,98100.0,0.023]
[1733429905839,0.25357704,98111.0,98100.0,0.023]
[1733429906561,0.19967605,98111.0,98100.0,0.023]
[1733429906783,0.35357704,98111.0,98100.0,0.023]
[1733429907003,0.15390099,98106.0,98105.0,0.19217165]
[1733429907220,0.25357704,98106.0,98105.0,0.19217165]
[1733429907452,0.25357704,98106.0,98105.0,0.19213165]
[1733429908113,0.25957704,98106.0,98105.0,0.19213165]
[1733429908328,0.26357704,98106.0,98105.0,0.19213165]
[1733429908793,0.26357704,98106.0,98105.0,0.09110165]
[1733429909636,0.11,98106.0,98105.0,0.09110165]
[1733429909881,0.11,98106.0,98105.0,0.1907777]
[1733429909882,0.01,98106.0,98105.0,0.1907777]
[1733429910102,0.01,98106.0,98105.0,0.1897777]
[1733429910341,0.01,98106.0,98105.0,0.09010165]
[1733429910531,0.006,98106.0,98105.0,0.09010165]
[1733429910748,0.15990099,98106.0,98105.0,0.09010165]
[1733429910967,0.15590099,98106.0,98105.0,0.09010165]
[1733429911421,0.15590099,98106.0,98085.0,0.163122]
[1733429911422,0.203908,98083.0,98046.0,0.00101932]
[1733429911642,0.15390099,98083.0,98076.0,0.163137]
[1733429911863,0.05390099,98083.0,98073.0,0.163142]
[1733429912075,0.12073342,98119.0,98047.0,0.040768]
[1733429912076,0.05390099,98091.0,98078.0,0.163134]
[1733429912284,0.05390099,98091.0,98047.0,0.040768]
[1733429912285,0.1,98092.0,98075.0,0.1781636]
[1733429912509,0.04890099,98083.0,98075.0,0.1781636]
[1733429912722,0.04890099,98083.0,98075.0,0.0150246]
[1733429913593,0.14890099,98083.0,98075.0,0.0150246]
[1733429914068,0.12390099,98083.0,98075.0,0.0150246]
[1733429914308,0.02390099,98083.0,98077.0,0.163136]
[1733429914520,0.02090099,98083.0,98076.0,0.163138]
[1733429914739,0.006,98083.0,98076.0,0.163138]
[1733429914966,0.02790099,98083.0,98081.0,0.16313]
[1733429915233,0.009,98083.0,98081.0,0.16313]
[1733429916356,0.006,98083.0,98081.0,0.16313]
[1733429916584,0.11890099,98083.0,98075.0,0.0150246]
[1733429916826,0.12890099,98083.0,98075.0,0.0150246]
[1733429917026,0.12190099,98083.0,98075.0,0.1781636]
[1733429917258,0.11890099,98083.0,98075.0,0.0150246]
[1733429917481,0.12090099,98083.0,98077.0,0.163136]
[1733429917710,0.11990099,98083.0,98075.0,0.0150246]
[1733429918163,0.12590099,98083.0,98075.0,0.0150246]
[1733429918375,0.12590099,98083.0,98069.0,0.16315]
[1733429918376,0.01890099,98070.0,98069.0,0.16144593]
[1733429918809,0.01890099,98068.0,98063.0,6e-05]
[1733429919026,0.01890099,98068.0,98067.0,0.163153]
[1733429919677,0.01890099,98068.0,98067.0,0.326306]
[1733429919894,0.1,98070.0,98067.0,0.326306]
[1733429920118,0.1,98070.0,98066.0,0.008406]
[1733429920119,0.1,98067.0,98066.0,0.008406]
[1733429920387,0.21857704,98067.0,98066.0,0.008406]
[1733429920612,0.11890099,98067.0,98066.0,0.008406]
[1733429921537,0.01890099,98077.0,98066.0,0.10908205]
[1733429921764,0.01890099,98076.0,98074.0,0.173338]
[1733429922004,0.01890099,98075.0,98074.0,0.173338]
[1733429922225,0.01890099,98075.0,98074.0,0.173298]
[1733429922870,0.01890099,98071.0,98066.0,0.008406]
[1733429923092,0.01990099,98067.0,98066.0,0.008406]
[1733429923322,0.01990099,98067.0,98066.0,0.009406]
[1733429923542,0.01890099,98067.0,98066.0,0.008406]
[1733429924197,0.01890099,98067.0,98066.0,0.181758]
[1733429924418,0.01890099,98067.0,98066.0,0.008406]
[1733429924419,0.02090099,98067.0,98066.0,0.008406]
[1733429925043,0.002,98067.0,98066.0,0.10808205]
[1733429925272,0.002,98067.0,98066.0,0.10708205]
[1733429925524,0.002,98067.0,98066.0,0.13008205]
[1733429925983,0.002,98067.0,98066.0,0.28008205]
[1733429926190,0.0017332,98090.0,98068.0,0.15]
[1733429926400,0.0017332,98090.0,98087.0,0.173315]
[1733429926623,0.0017332,98090.0,98089.0,0.173311]
[1733429926858,0.0017332,98090.0,98089.0,0.27298705]
[1733429927081,0.0017332,98090.0,98089.0,0.173311]
[1733429927296,0.01890099,98086.0,98083.0,0.173321]
[1733429927501,0.01890099,98086.0,98081.0,0.173326]
[1733429927715,0.0017332,98090.0,98069.0,0.173346]
[1733429927716,0.01890099,98072.0,98069.0,0.173346]
[1733429928183,0.0037332,98090.0,98066.0,0.007406]
[1733429928184,0.01890099,98086.0,98070.0,0.09967605]
[1733429928405,0.0037332,98090.0,98083.0,0.173322]
[1733429928628,0.0037332,98090.0,98089.0,0.173311]
[1733429928835,0.01890099,98084.0,98078.0,0.173331]
[1733429929045,0.01890099,98084.0,98079.0,0.09967605]
[1733429929251,0.01890099,98084.0,98081.0,0.173325]
[1733429929476,0.1,98086.0,98081.0,0.177325]
[1733429929689,0.01890099,98085.0,98084.0,0.17332]
[1733429929931,0.101,98086.0,98084.0,0.17332]
[1733429929932,0.001,98086.0,98084.0,0.27299605]
[1733429930149,0.01990099,98086.0,98085.0,0.09967605]
[1733429930369,0.0017332,98090.0,98086.0,0.407804]
[1733429930581,0.0017332,98090.0,98088.0,0.203898]
[1733429930809,0.0017332,98090.0,98088.0,0.30357405]
[1733429931020,0.0017332,98090.0,98089.0,0.09967605]
[1733429931244,0.0017332,98090.0,98088.0,0.203898]
[1733429931674,0.0017332,98090.0,98089.0,0.09967605]
[1733429931882,0.0017332,98090.0,98088.0,0.203898]
[1733429932575,0.1,98088.0,98081.0,0.203911]
[1733429932804,0.1,98076.0,98060.0,0.27553842]
[1733429933032,0.001,98086.0,98085.0,0.203904]
[1733429933252,0.001,98086.0,98085.0,0.30358005]
[1733429933506,0.0027332,98090.0,98079.0,0.203915]
[1733429933507,0.1,98084.0,98079.0,0.203915]
[1733429933950,0.1,98076.0,98068.0,0.20394]
[1733429934157,0.1,98076.0,98069.0,0.09967605]
[1733429934572,0.1,98076.0,98073.0,0.203927]
[1733429934793,0.1,98076.0,98050.0,0.35379944]
[1733429935008,0.1,98069.0,98051.0,0.09967605]
[1733429935225,0.1,98075.0,98074.0,0.203927]
[1733429935444,0.1,98077.0,98066.0,0.27539944]
[1733429935668,0.1,98074.0,98072.0,0.203931]
[1733429935881,0.1,98074.0,98072.0,0.194431]
[1733429936131,0.1,98078.0,98068.0,0.40788]
[1733429936352,0.1,98077.0,98067.0,0.09967605]
[1733429936563,0.1,98073.0,98069.0,0.206938]
[1733429936776,0.1,98073.0,98067.0,0.30361705]
[1733429936993,0.1,98077.0,98067.0,0.30361705]
[1733429936994,0.1,98077.0,98067.0,0.09967605]
[1733429937224,0.001,98074.0,98072.0,0.003]
[1733429937450,0.1,98077.0,98070.0,0.203935]
[1733429937694,0.1,98073.0,98070.0,0.203935]
[1733429937917,0.101,98073.0,98070.0,0.203935]
[1733429938133,0.1,98069.0,98068.0,0.004]
[1733429938566,0.1,98068.0,98067.0,0.203941]
[1733429938773,0.1,98068.0,98067.0,0.407882]
[1733429938984,0.1,98068.0,98067.0,0.207941]
[1733429939209,0.1,98068.0,98067.0,0.004]
[1733429939435,0.1,98064.0,98060.0,0.0008667]
[1733429939669,0.1,98064.0,98061.0,0.407908]
[1733429939949,0.1,98073.0,98062.0,0.09967605]
[1733429940188,0.001,98068.0,98067.0,0.003]
[1733429940451,0.001,98068.0,98066.0,0.193746]
[1733429940452,0.1,98067.0,98066.0,0.193746]
[1733429940700,0.101,98068.0,98060.0,0.1946237]
[1733429940701,0.1,98065.0,98060.0,0.1946237]
[1733429940927,0.101,98068.0,98060.0,0.10354275]
[1733429941191,0.0017334,98080.0,98067.0,0.15]
[1733429941402,0.0017334,98080.0,98079.0,0.343721]
[1733429941663,0.0017334,98080.0,98079.0,0.29339705]
[1733429941914,0.0017334,98080.0,98079.0,0.44339705]
[1733429943095,4e-07,98080.0,98079.0,0.44339705]
[1733429943388,1.8e-07,98091.0,98090.0,0.15]
[1733429943633,0.1,98142.0,98135.0,0.19361]
[1733429943871,0.1,98142.0,98114.0,0.15]
[1733429943872,0.1,98151.0,98137.0,0.193606]
[1733429944142,0.1,98164.0,98142.0,0.15]
[1733429944377,0.0464,98179.0,98142.0,0.15]
[1733429944378,0.1,98175.0,98160.0,0.1787066]
[1733429944635,0.1,98185.0,98166.0,0.193549]
[1733429944866,0.1,98185.0,98167.0,0.24967605]
[1733429945100,0.1,98181.0,98169.0,0.15]
[1733429945334,0.1,98181.0,98160.0,0.19793356]
[1733429945335,0.1,98165.0,98150.0,0.1787066]
[1733429945620,0.1,98157.0,98145.0,0.15]
[1733429945852,0.0815312,98180.0,98139.0,0.15]
[1733429945853,0.1,98152.0,98139.0,0.15]
[1733429946138,0.2852392,98180.0,98130.0,0.17864262]
[1733429946139,0.1,98138.0,98130.0,0.17864262]
[1733429946394,0.1,98140.0,98131.0,0.09967605]
[1733429946618,0.1,98147.0,98131.0,0.09967605]
[1733429946619,0.1,98147.0,98138.0,0.193604]
[1733429946854,0.1,98150.0,98145.0,0.005]
[1733429947331,0.1,98150.0,98130.0,0.27526319]
[1733429947332,0.2,98131.0,98130.0,0.00017661]
[1733429947568,0.29967605,98131.0,98130.0,0.00217661]
[1733429947816,0.1,98101.0,98096.0,0.193685]
[1733429948027,0.1,98108.0,98097.0,0.09967605]
[1733429948271,0.1,98107.0,98099.0,0.193681]
[1733429948495,0.1,98107.0,98100.0,0.09967605]
[1733429948746,0.1,98108.0,98100.0,0.09967605]
[1733429949250,0.1,98107.0,98101.0,0.193677]
[1733429949494,0.1,98108.0,98102.0,0.193675]
[1733429949712,0.10017664,98107.0,98102.0,0.193675]
[1733429949949,0.00017664,98107.0,98102.0,0.38735]
[1733429950194,0.00017664,98107.0,98100.0,0.002]
[1733429950420,0.10017664,98107.0,98101.0,0.29335305]
[1733429950647,0.00017664,98107.0,98101.0,0.48903005]
[1733429950906,0.00017664,98107.0,98103.0,0.387346]
[1733429951133,0.00017664,98107.0,98100.0,0.002]
[1733429951134,0.1,98106.0,98102.0,0.002]
[1733429951430,0.2,98103.0,98102.0,0.002]
[1733429951653,0.2,98103.0,98102.0,0.004]
[1733429952355,0.22001766,98103.0,98085.0,0.15]
[1733429952621,0.1,98087.0,98081.0,0.15]
[1733429952836,0.00017664,98107.0,98081.0,0.15]
[1733429952837,0.1,98095.0,98094.0,0.19369]
[1733429953082,0.1,98092.0,98082.0,0.09967605]
[1733429953300,0.1,98087.0,98081.0,0.15]
[1733429953522,0.1,98099.0,98083.0,0.15]
[1733429953737,0.10017664,98107.0,98084.0,0.09967605]
[1733429953946,0.001,98087.0,98084.0,0.09967605]
[1733429954161,0.00017664,98107.0,98087.0,0.193705]
[1733429954378,0.00017664,98107.0,98088.0,0.09967605]
[1733429954596,0.00017664,98107.0,98106.0,0.193668]
[1733429954824,0.1,98099.0,98098.0,0.193683]
[1733429955491,0.00017664,98107.0,98105.0,0.193669]
[1733429955715,0.00017664,98107.0,98106.0,0.24967605]
[1733429956150,0.00017664,98107.0,98105.0,0.193669]
[1733429956362,0.1,98104.0,98102.0,0.193675]
[1733429956578,0.00017664,98107.0,98102.0,0.193675]
[1733429956792,0.00017664,98107.0,98103.0,0.09967605]
[1733429957025,0.1,98104.0,98101.0,0.193677]
[1733429957234,0.1,98104.0,98102.0,0.15]
[1733429957710,0.00217664,98107.0,98045.0,0.25703637]
[1733429957711,0.1,98099.0,98062.0,0.193754]
[1733429957926,0.00217664,98107.0,98072.0,0.09967605]
[1733429957927,0.1,98093.0,98072.0,0.09967605]
[1733429958151,0.1,98081.0,98072.0,0.09967605]
[1733429958382,0.1,98072.0,98060.0,0.0008667]
[1733429958600,0.1,98078.0,98060.0,0.0008667]
[1733429958601,0.1,98071.0,98068.0,0.193741]
[1733429958819,0.1,98071.0,98068.0,0.387483]
[1733429959071,0.1,98071.0,98061.0,0.29343205]
[1733429959278,0.0762,98101.0,98073.0,0.193733]
[1733429959279,0.1,98080.0,98073.0,0.193733]
[1733429959525,0.1,98074.0,98060.0,0.0008667]
[1733429959771,0.1,98074.0,98073.0,0.193733]
[1733429960266,0.1,98073.0,98072.0,0.007]
[1733429960500,0.2,98073.0,98072.0,0.007]
[1733429960753,0.22001766,98073.0,98072.0,0.007]
[1733429960986,0.2,98073.0,98072.0,0.007]
[1733429961214,0.29967605,98073.0,98072.0,0.007]
[1733429961443,0.1,98061.0,98052.0,0.193773]
[1733429961704,0.00017658,98080.0,98057.0,0.193763]
[1733429961705,0.1,98069.0,98057.0,0.193763]
[1733429961928,0.00017658,98080.0,98060.0,0.10054275]
[1733429961929,0.1,98073.0,98060.0,0.10054275]
[1733429962171,0.1,98068.0,98061.0,0.29343105]
[1733429962400,0.1,98073.0,98072.0,0.193735]
[1733429962854,0.2,98073.0,98072.0,0.193735]
[1733429963072,0.1,98073.0,98072.0,0.193735]
[1733429963297,0.1,98073.0,98066.0,0.193746]
[1733429963504,0.00190978,98080.0,98063.0,0.193752]
[1733429963505,0.2,98066.0,98063.0,0.193752]
[1733429963726,0.2,98066.0,98063.0,0.387504]
[1733429963727,0.1,98066.0,98063.0,0.387504]
[1733429963948,0.1,98062.0,98061.0,0.193756]
[1733429964215,0.1,98063.0,98061.0,0.193756]
[1733429964674,0.1,98062.0,98061.0,0.193756]
[1733429964912,0.05479925,98062.0,98061.0,0.192756]
[1733429965126,0.05479925,98062.0,98061.0,0.193756]
[1733429965343,0.05479925,98066.0,98063.0,0.193752]
[1733429965776,0.05479925,98066.0,98063.0,0.387504]
[1733429966659,0.15479925,98066.0,98063.0,0.193752]
[1733429966899,0.15479925,98066.0,98063.0,0.387504]
[1733429967593,0.05479925,98062.0,98060.0,0.0008667]
[1733429968026,0.05479925,98061.0,98060.0,0.0008667]
[1733429968688,0.15479925,98061.0,98060.0,0.0008667]
[1733429968921,0.15479925,98061.0,98060.0,0.0038667]
[1733429969331,0.15479925,98061.0,98060.0,0.0008667]
[1733429969752,0.15479925,98061.0,98060.0,0.0018667]
[1733429970391,0.05479925,98061.0,98060.0,0.0018667]
[1733429970613,0.1,98063.0,98060.0,0.0018667]
[1733429970825,0.15479925,98063.0,98062.0,0.193754]
[1733429971046,0.05479925,98064.0,98062.0,0.193754]